[Event "*** Titled Tuesday Blitz"]
[Site "Chess.com"]
[Date "2020.11.10"]
[Round "8"]
[White "KacperPolOK"]
[Black "DonPreuss"]
[Result "1-0"]
[WhiteElo "2432"]
[BlackElo "2225"]
[TimeControl "180+1"]
[EndTime "11:34:51 PST"]
[Termination "KacperPolOK won by resignation"]

1. e4 {[%clk 0:03:00.1]} 1... e5 {[%clk 0:02:59.5]} 2. f4 {[%clk 0:02:59.4]}
2... d5 {[%clk 0:02:59.9]} 3. exd5 {[%clk 0:02:59.1]} 3... c6 {[%clk 0:02:58.9]}
4. fxe5 {[%clk 0:02:56.1]} 4... Qh4+ {[%clk 0:02:57.6]} 5. g3 {[%clk 0:02:30.4]}
5... Qe4+ {[%clk 0:02:56.9]} 6. Qe2 {[%clk 0:02:21.3]} 6... Qxh1 {[%clk
0:02:57.3]} 7. Nf3 {[%clk 0:02:21.2]} 7... Bh3 {[%clk 0:02:56]} 8. dxc6 {[%clk
0:02:18.4]} 8... Nxc6 {[%clk 0:02:54]} 9. d4 {[%clk 0:02:16.6]} 9... Qxf1+
{[%clk 0:02:45.1]} 10. Qxf1 {[%clk 0:02:16.5]} 10... Bxf1 {[%clk 0:02:45.7]} 11.
Kxf1 {[%clk 0:02:17.1]} 11... Nge7 {[%clk 0:02:20]} 12. c4 {[%clk 0:02:13.6]}
12... Nb4 {[%clk 0:02:18.6]} 13. Nc3 {[%clk 0:02:11.4]} 13... O-O-O {[%clk
0:02:16.6]} 14. d5 {[%clk 0:02:07.7]} 14... h6 {[%clk 0:01:59.8]} 15. Nd4 {[%clk
0:01:58.3]} 15... Ng6 {[%clk 0:01:57.1]} 16. Bf4 {[%clk 0:01:50.1]} 16... Nxf4
{[%clk 0:01:55.8]} 17. gxf4 {[%clk 0:01:49.8]} 17... Bc5 {[%clk 0:01:54.6]} 18.
Nde2 {[%clk 0:01:39.9]} 18... Nc2 {[%clk 0:01:46.1]} 19. Rc1 {[%clk 0:01:35.4]}
19... Ne3+ {[%clk 0:01:44.5]} 20. Ke1 {[%clk 0:01:32.4]} 20... Bb4 {[%clk
0:01:40.3]} 21. a3 {[%clk 0:01:31.1]} 21... Bxc3+ {[%clk 0:01:38]} 22. Rxc3
{[%clk 0:01:31.1]} 22... Nf5 {[%clk 0:01:37.7]} 23. b4 {[%clk 0:01:30.8]} 23...
Kd7 {[%clk 0:01:23.4]} 24. Kf2 {[%clk 0:01:28.6]} 24... Rc8 {[%clk 0:01:21.9]}
25. Kf3 {[%clk 0:01:27.5]} 25... Rc7 {[%clk 0:01:20]} 26. Ke4 {[%clk 0:01:27.6]}
26... Rhc8 {[%clk 0:01:19]} 27. c5 {[%clk 0:01:27.9]} 27... g6 {[%clk
0:01:07.8]} 28. Nd4 {[%clk 0:01:21.1]} 28... Nxd4 {[%clk 0:01:07.2]} 29. Kxd4
{[%clk 0:01:21.3]} 29... a6 {[%clk 0:01:02.5]} 30. a4 {[%clk 0:01:21.1]} 30...
Ra8 {[%clk 0:01:00.7]} 31. d6 {[%clk 0:01:20]} 31... Rcc8 {[%clk 0:00:58.1]} 32.
Kd5 {[%clk 0:01:20.2]} 32... Rc6 {[%clk 0:00:38.7]} 33. b5 {[%clk 0:01:02.5]}
33... axb5 {[%clk 0:00:38.8]} 34. axb5 {[%clk 0:01:02.5]} 34... Ra4 {[%clk
0:00:38.9]} 35. Rf3 {[%clk 0:00:48.7]} 35... Rc8 {[%clk 0:00:32.7]} 36. f5
{[%clk 0:00:47.7]} 36... gxf5 {[%clk 0:00:29.3]} 37. Rxf5 {[%clk 0:00:46.8]}
37... Rf8 {[%clk 0:00:20.4]} 38. c6+ {[%clk 0:00:37.5]} 38... bxc6+ {[%clk
0:00:20.7]} 39. bxc6+ {[%clk 0:00:38.4]} 39... Kc8 {[%clk 0:00:20]} 40. Rf3
{[%clk 0:00:32.1]} 40... Ra5+ {[%clk 0:00:19.3]} 41. Kd4 {[%clk 0:00:32.1]}
41... Re8 {[%clk 0:00:17.7]} 42. d7+ {[%clk 0:00:31.1]} 42... Kd8 {[%clk
0:00:17.3]} 43. dxe8=Q+ {[%clk 0:00:31.4]} 43... Kxe8 {[%clk 0:00:18.2]} 44. Rf6
{[%clk 0:00:28.6]} 44... h5 {[%clk 0:00:18]} 45. Rh6 {[%clk 0:00:27.7]} 45...
Ra4+ {[%clk 0:00:16.6]} 46. Kd5 {[%clk 0:00:27.4]} 46... Ke7 {[%clk 0:00:17.5]}
47. c7 {[%clk 0:00:24.5]} 47... Ra5+ {[%clk 0:00:18.4]} 48. Kc6 {[%clk
0:00:24.1]} 48... Ra6+ {[%clk 0:00:17.6]} 49. Kb7 {[%clk 0:00:24.2]} 49... Rxh6
{[%clk 0:00:17.7]} 50. c8=Q {[%clk 0:00:24.8]} 50... Re6 {[%clk 0:00:17.6]} 51.
Qc7+ {[%clk 0:00:24.1]} 51... Kf8 {[%clk 0:00:17.7]} 52. h4 {[%clk 0:00:24.3]}
52... Kg7 {[%clk 0:00:17.7]} 53. Kc8 {[%clk 0:00:20.8]} 53... Kf8 {[%clk
0:00:17.2]} 54. Qc5+ {[%clk 0:00:18.6]} 54... Kg7 {[%clk 0:00:17]} 55. Kd7
{[%clk 0:00:18.9]} 55... Kg6 {[%clk 0:00:16.7]} 56. Qd5 {[%clk 0:00:17.8]} 56...
Kf5 {[%clk 0:00:16.6]} 57. Qxe6+ {[%clk 0:00:13.4]} 57... fxe6 {[%clk
0:00:15.4]} 58. Kd6 {[%clk 0:00:14]} 58... Kg4 {[%clk 0:00:14.6]} 59. Kxe6
{[%clk 0:00:09]} 59... Kxh4 {[%clk 0:00:15.5]} 60. Kf5 {[%clk 0:00:08.6]} 60...
Kg3 {[%clk 0:00:15.8]} 61. e6 {[%clk 0:00:08.4]} 61... h4 {[%clk 0:00:16.7]} 62.
e7 {[%clk 0:00:09]} 62... h3 {[%clk 0:00:17.6]} 63. e8=Q {[%clk 0:00:09.6]}
63... h2 {[%clk 0:00:18.5]} 64. Qc6 {[%clk 0:00:09.2]} 64... h1=Q {[%clk
0:00:05.7]} 65. Qxh1 {[%clk 0:00:10.1]} 1-0

[Event "*** Titled Tuesday Blitz"]
[Site "Chess.com"]
[Date "2020.11.10"]
[Round "8"]
[White "Jospem"]
[Black "Igor_Lysyj"]
[Result "1/2-1/2"]
[WhiteElo "2915"]
[BlackElo "2835"]
[TimeControl "180+1"]
[EndTime "11:34:52 PST"]
[Termination "Game drawn - insufficient material"]

1. e4 {[%clk 0:03:00.9]} 1... e5 {[%clk 0:02:59.1]} 2. Nf3 {[%clk 0:03:01.3]}
2... Nc6 {[%clk 0:02:58.6]} 3. Bb5 {[%clk 0:03:01.6]} 3... a6 {[%clk 0:02:58.2]}
4. Ba4 {[%clk 0:03:02]} 4... Nf6 {[%clk 0:02:58.3]} 5. O-O {[%clk 0:03:02.6]}
5... Bc5 {[%clk 0:02:57.7]} 6. d3 {[%clk 0:03:00.2]} 6... d6 {[%clk 0:02:54.8]}
7. c3 {[%clk 0:02:59.1]} 7... O-O {[%clk 0:02:53.8]} 8. h3 {[%clk 0:02:57]} 8...
Ba7 {[%clk 0:02:53.1]} 9. Nbd2 {[%clk 0:02:56.7]} 9... Ne7 {[%clk 0:02:52.1]}
10. d4 {[%clk 0:02:57.1]} 10... Ng6 {[%clk 0:02:47.8]} 11. Re1 {[%clk 0:02:56]}
11... c5 {[%clk 0:02:45.8]} 12. Bc2 {[%clk 0:02:50.3]} 12... b5 {[%clk
0:02:43.8]} 13. d5 {[%clk 0:02:30.1]} 13... c4 {[%clk 0:02:42.9]} 14. b3 {[%clk
0:02:30.7]} 14... cxb3 {[%clk 0:02:41.5]} 15. axb3 {[%clk 0:02:30.8]} 15... Qc7
{[%clk 0:02:34.1]} 16. c4 {[%clk 0:02:25.3]} 16... Bd7 {[%clk 0:02:29.7]} 17.
Bd3 {[%clk 0:01:53.9]} 17... Bc5 {[%clk 0:02:27.4]} 18. Nf1 {[%clk 0:01:51]}
18... b4 {[%clk 0:02:23.3]} 19. Be3 {[%clk 0:01:39.1]} 19... a5 {[%clk
0:02:21.6]} 20. Bc2 {[%clk 0:01:35.8]} 20... Qb6 {[%clk 0:02:16.9]} 21. Kh2
{[%clk 0:01:35.4]} 21... Rfb8 {[%clk 0:02:13.6]} 22. Bxc5 {[%clk 0:01:22.7]}
22... Qxc5 {[%clk 0:02:13]} 23. Ne3 {[%clk 0:01:22.8]} 23... Be8 {[%clk
0:02:06.7]} 24. g3 {[%clk 0:01:17.9]} 24... Ne7 {[%clk 0:02:02]} 25. Rf1 {[%clk
0:01:12.8]} 25... Qc8 {[%clk 0:02:00.7]} 26. Ne1 {[%clk 0:01:11.6]} 26... Bd7
{[%clk 0:01:57.1]} 27. h4 {[%clk 0:01:05.1]} 27... Bh3 {[%clk 0:01:52.7]} 28.
Rg1 {[%clk 0:00:57.5]} 28... Bg4 {[%clk 0:01:45.4]} 29. f3 {[%clk 0:00:57.4]}
29... Bd7 {[%clk 0:01:44.5]} 30. Nd3 {[%clk 0:00:56.1]} 30... Ne8 {[%clk
0:01:23.2]} 31. c5 {[%clk 0:00:53]} 31... Bb5 {[%clk 0:01:22.4]} 32. c6 {[%clk
0:00:51.9]} 32... f5 {[%clk 0:01:17.2]} 33. Nf2 {[%clk 0:00:36.6]} 33... g6
{[%clk 0:00:56.7]} 34. exf5 {[%clk 0:00:34.6]} 34... gxf5 {[%clk 0:00:56.5]} 35.
g4 {[%clk 0:00:33.9]} 35... f4 {[%clk 0:00:52.9]} 36. Nf5 {[%clk 0:00:34.2]}
36... Qc7 {[%clk 0:00:44.5]} 37. Nh6+ {[%clk 0:00:28.5]} 37... Kg7 {[%clk
0:00:37.3]} 38. g5 {[%clk 0:00:28.9]} 38... Qb6 {[%clk 0:00:32.1]} 39. Nfg4
{[%clk 0:00:18.8]} 39... Qd4 {[%clk 0:00:30.4]} 40. Qxd4 {[%clk 0:00:13.6]}
40... exd4 {[%clk 0:00:30.2]} 41. Rad1 {[%clk 0:00:12.9]} 41... Nxd5 {[%clk
0:00:27.3]} 42. Rxd4 {[%clk 0:00:13.4]} 42... Bxc6 {[%clk 0:00:26.3]} 43. Be4
{[%clk 0:00:08.1]} 43... Nec7 {[%clk 0:00:25.6]} 44. Rc1 {[%clk 0:00:08.5]}
44... Ra6 {[%clk 0:00:22]} 45. Nf5+ {[%clk 0:00:04]} 45... Kf8 {[%clk
0:00:20.6]} 46. Bd3 {[%clk 0:00:04.1]} 46... Bb5 {[%clk 0:00:18.5]} 47. Be4
{[%clk 0:00:02.8]} 47... Bc6 {[%clk 0:00:16.4]} 48. Nxd6 {[%clk 0:00:03.1]}
48... a4 {[%clk 0:00:15.9]} 49. bxa4 {[%clk 0:00:03.3]} 49... b3 {[%clk
0:00:16.3]} 50. Ne5 {[%clk 0:00:03.7]} 50... b2 {[%clk 0:00:16]} 51. Rxc6 {[%clk
0:00:03.1]} 51... Rxc6 {[%clk 0:00:15.8]} 52. Nxc6 {[%clk 0:00:04]} 52... Rb6
{[%clk 0:00:16.1]} 53. Ne5 {[%clk 0:00:02.4]} 53... Rxd6 {[%clk 0:00:16]} 54.
Rd2 {[%clk 0:00:02.3]} 54... Rb6 {[%clk 0:00:14.9]} 55. Bb1 {[%clk 0:00:01.9]}
55... Nc3 {[%clk 0:00:15]} 56. Nc4 {[%clk 0:00:02.5]} 56... Rb4 {[%clk
0:00:14.3]} 57. Rxb2 {[%clk 0:00:01.3]} 57... Rxb2+ {[%clk 0:00:13.8]} 58. Nxb2
{[%clk 0:00:02.2]} 58... Nxb1 {[%clk 0:00:14]} 59. Nd3 {[%clk 0:00:02.9]} 59...
Nc3 {[%clk 0:00:13.5]} 60. Nxf4 {[%clk 0:00:01.9]} 60... Nxa4 {[%clk 0:00:13.5]}
61. Kg3 {[%clk 0:00:02.4]} 61... Nc5 {[%clk 0:00:13.1]} 62. Nh5 {[%clk
0:00:02.2]} 62... Kf7 {[%clk 0:00:12.4]} 63. Nf6 {[%clk 0:00:02.7]} 63... Kg6
{[%clk 0:00:11.3]} 64. f4 {[%clk 0:00:03.2]} 64... h5 {[%clk 0:00:11]} 65. f5+
{[%clk 0:00:01.4]} 65... Kxf5 {[%clk 0:00:10.8]} 66. Nxh5 {[%clk 0:00:02.2]}
66... N7e6 {[%clk 0:00:11]} 67. Kh3 {[%clk 0:00:02.7]} 67... Ne4 {[%clk
0:00:10.1]} 68. Ng3+ {[%clk 0:00:03.1]} 68... Nxg3 {[%clk 0:00:09.6]} 69. Kxg3
{[%clk 0:00:04]} 69... Nxg5 {[%clk 0:00:09.5]} 70. hxg5 {[%clk 0:00:04.9]} 70...
Kxg5 {[%clk 0:00:10]} 1/2-1/2

[Event "*** Titled Tuesday Blitz"]
[Site "Chess.com"]
[Date "2020.11.10"]
[Round "8"]
[White "cottage_cheese"]
[Black "dopolian"]
[Result "1/2-1/2"]
[WhiteElo "2164"]
[BlackElo "2337"]
[TimeControl "180+1"]
[EndTime "11:34:57 PST"]
[Termination "Game drawn by repetition"]

1. e4 {[%clk 0:03:00.9]} 1... Nc6 {[%clk 0:02:58.5]} 2. Nf3 {[%clk 0:03:00.8]}
2... e5 {[%clk 0:02:59]} 3. Bb5 {[%clk 0:03:00.3]} 3... a6 {[%clk 0:02:59]} 4.
Ba4 {[%clk 0:02:59.6]} 4... Nf6 {[%clk 0:02:59]} 5. O-O {[%clk 0:02:58.5]} 5...
Nxe4 {[%clk 0:02:54.3]} 6. d4 {[%clk 0:02:50.1]} 6... b5 {[%clk 0:02:49.3]} 7.
Bb3 {[%clk 0:02:49.3]} 7... d5 {[%clk 0:02:49.8]} 8. dxe5 {[%clk 0:02:47.3]}
8... Be6 {[%clk 0:02:50.2]} 9. Nbd2 {[%clk 0:02:43.5]} 9... Be7 {[%clk
0:02:47.9]} 10. c3 {[%clk 0:02:39.3]} 10... O-O {[%clk 0:02:46.6]} 11. Qe2
{[%clk 0:02:23.9]} 11... Nc5 {[%clk 0:02:42.9]} 12. Bc2 {[%clk 0:02:22]} 12...
d4 {[%clk 0:02:41]} 13. cxd4 {[%clk 0:02:04.2]} 13... Nxd4 {[%clk 0:02:41.9]}
14. Nxd4 {[%clk 0:01:59.8]} 14... Qxd4 {[%clk 0:02:42.8]} 15. Qh5 {[%clk
0:01:41.5]} 15... g6 {[%clk 0:02:37]} 16. Qe2 {[%clk 0:01:29.5]} 16... Rfd8
{[%clk 0:02:29.3]} 17. Nf3 {[%clk 0:01:00.8]} 17... Qc4 {[%clk 0:02:28.4]} 18.
Qxc4 {[%clk 0:00:53.6]} 18... Bxc4 {[%clk 0:02:29.3]} 19. Rd1 {[%clk 0:00:39.1]}
19... Rxd1+ {[%clk 0:02:21.6]} 20. Bxd1 {[%clk 0:00:38]} 20... Rd8 {[%clk
0:02:22.1]} 21. Be3 {[%clk 0:00:34.6]} 21... Nd3 {[%clk 0:02:22]} 22. b3 {[%clk
0:00:25.6]} 22... Be6 {[%clk 0:02:17.8]} 23. Bc2 {[%clk 0:00:23]} 23... Nb4
{[%clk 0:02:11.8]} 24. Be4 {[%clk 0:00:21.9]} 24... Bd5 {[%clk 0:02:07.8]} 25.
Bxd5 {[%clk 0:00:20.4]} 25... Rxd5 {[%clk 0:02:08.7]} 26. Kf1 {[%clk 0:00:18.1]}
26... Nc2 {[%clk 0:02:04.6]} 27. Rc1 {[%clk 0:00:17.1]} 27... Nxe3+ {[%clk
0:02:05.1]} 28. fxe3 {[%clk 0:00:17.5]} 28... c5 {[%clk 0:02:05.1]} 29. Ke2
{[%clk 0:00:17.4]} 29... Kf8 {[%clk 0:02:02.7]} 30. Rd1 {[%clk 0:00:17.6]} 30...
Rxd1 {[%clk 0:02:02.2]} 31. Kxd1 {[%clk 0:00:18.5]} 31... Ke8 {[%clk 0:02:02.6]}
32. Nd2 {[%clk 0:00:18.6]} 32... Kd7 {[%clk 0:02:01.5]} 33. Ke2 {[%clk 0:00:17]}
33... Ke6 {[%clk 0:02:01.9]} 34. Nf3 {[%clk 0:00:16.9]} 34... h6 {[%clk
0:01:53.1]} 35. Kd3 {[%clk 0:00:17.1]} 35... Kd5 {[%clk 0:01:47.9]} 36. e4+
{[%clk 0:00:13.8]} 36... Ke6 {[%clk 0:01:47.8]} 37. a4 {[%clk 0:00:14]} 37...
Bd8 {[%clk 0:01:45.6]} 38. axb5 {[%clk 0:00:13.4]} 38... axb5 {[%clk 0:01:46.5]}
39. h3 {[%clk 0:00:12.7]} 39... Bc7 {[%clk 0:01:44.9]} 40. Ne1 {[%clk
0:00:05.8]} 40... Bxe5 {[%clk 0:01:44.3]} 41. Nc2 {[%clk 0:00:06.3]} 41... Kd6
{[%clk 0:01:31.9]} 42. Ne3 {[%clk 0:00:06.3]} 42... Bd4 {[%clk 0:01:28.9]} 43.
Nd5 {[%clk 0:00:05.9]} 43... f5 {[%clk 0:01:28]} 44. Nf4 {[%clk 0:00:04.8]}
44... g5 {[%clk 0:01:21]} 45. Ne2 {[%clk 0:00:04.9]} 45... fxe4+ {[%clk
0:01:18.4]} 46. Kxe4 {[%clk 0:00:05.8]} 46... Bb2 {[%clk 0:01:13.2]} 47. Ng3
{[%clk 0:00:04.8]} 47... Ke6 {[%clk 0:01:12.5]} 48. Nf5 {[%clk 0:00:04.6]} 48...
h5 {[%clk 0:01:13]} 49. Ng3 {[%clk 0:00:04.3]} 49... h4 {[%clk 0:01:10.8]} 50.
Ne2 {[%clk 0:00:04.5]} 50... c4 {[%clk 0:00:55.3]} 51. bxc4 {[%clk 0:00:05.4]}
51... bxc4 {[%clk 0:00:56.2]} 52. Ng1 {[%clk 0:00:04.2]} 52... Bf6 {[%clk
0:00:54.6]} 53. Nf3 {[%clk 0:00:05.1]} 53... c3 {[%clk 0:00:54.9]} 54. Kd3
{[%clk 0:00:05.1]} 54... Kf5 {[%clk 0:00:54.7]} 55. Ng1 {[%clk 0:00:04.8]} 55...
Be5 {[%clk 0:00:41.8]} 56. Ne2 {[%clk 0:00:05.7]} 56... Bg7 {[%clk 0:00:36.9]}
57. Ng1 {[%clk 0:00:06.2]} 57... Ke6 {[%clk 0:00:24.9]} 58. Ne2 {[%clk
0:00:07.1]} 58... Bf6 {[%clk 0:00:24.7]} 59. Ke3 {[%clk 0:00:07]} 59... Kd5
{[%clk 0:00:23.8]} 60. Kd3 {[%clk 0:00:07.1]} 60... Be5 {[%clk 0:00:22.3]} 61.
Nxc3+ {[%clk 0:00:07.3]} 61... Bxc3 {[%clk 0:00:22.3]} 62. Kxc3 {[%clk
0:00:07.7]} 62... Ke4 {[%clk 0:00:23]} 63. Kd2 {[%clk 0:00:08.4]} 63... Kf4
{[%clk 0:00:19.8]} 64. Ke2 {[%clk 0:00:09]} 64... Kg3 {[%clk 0:00:20.1]} 65. Kf1
{[%clk 0:00:09.6]} 65... Kf4 {[%clk 0:00:17.9]} 66. Kf2 {[%clk 0:00:09.6]} 66...
g4 {[%clk 0:00:18]} 67. hxg4 {[%clk 0:00:09.3]} 67... Kxg4 {[%clk 0:00:18.9]}
68. Kg1 {[%clk 0:00:09.2]} 68... h3 {[%clk 0:00:19.8]} 69. Kh1 {[%clk
0:00:09.9]} 69... h2 {[%clk 0:00:18.9]} 70. Kxh2 {[%clk 0:00:09.6]} 70... Kh4
{[%clk 0:00:19.5]} 71. g3+ {[%clk 0:00:10.3]} 71... Kg4 {[%clk 0:00:20.1]} 72.
Kg2 {[%clk 0:00:11.2]} 72... Kg5 {[%clk 0:00:20.6]} 73. Kf3 {[%clk 0:00:12.1]}
73... Kf5 {[%clk 0:00:21.1]} 74. g4+ {[%clk 0:00:13]} 74... Kg5 {[%clk
0:00:21.7]} 75. Kg3 {[%clk 0:00:13.9]} 75... Kg6 {[%clk 0:00:22.4]} 76. Kf4
{[%clk 0:00:14.8]} 76... Kf6 {[%clk 0:00:23]} 77. g5+ {[%clk 0:00:15.7]} 77...
Kg6 {[%clk 0:00:23.7]} 78. Kg4 {[%clk 0:00:16.6]} 78... Kg7 {[%clk 0:00:24.3]}
79. Kf5 {[%clk 0:00:17.5]} 79... Kf7 {[%clk 0:00:24.7]} 80. g6+ {[%clk
0:00:18.4]} 80... Kg7 {[%clk 0:00:25.2]} 81. Kg5 {[%clk 0:00:19.3]} 81... Kg8
{[%clk 0:00:25.7]} 82. Kh6 {[%clk 0:00:20.2]} 82... Kh8 {[%clk 0:00:25.9]} 83.
Kh5 {[%clk 0:00:21.1]} 83... Kg7 {[%clk 0:00:26.1]} 84. Kg5 {[%clk 0:00:22]}
84... Kg8 {[%clk 0:00:26.4]} 85. Kf5 {[%clk 0:00:22.9]} 85... Kf8 {[%clk
0:00:26.6]} 86. Kg5 {[%clk 0:00:22.8]} 86... Kg7 {[%clk 0:00:24.9]} 87. Kf5
{[%clk 0:00:22.8]} 87... Kg8 {[%clk 0:00:24.4]} 88. Kg4 {[%clk 0:00:23.7]} 88...
Kg7 {[%clk 0:00:24.6]} 89. Kg5 {[%clk 0:00:24.6]} 1/2-1/2

[Event "*** Titled Tuesday Blitz"]
[Site "Chess.com"]
[Date "2020.11.10"]
[Round "8"]
[White "Fins0905"]
[Black "Chessalary"]
[Result "0-1"]
[WhiteElo "2618"]
[BlackElo "2474"]
[TimeControl "180+1"]
[EndTime "11:35:02 PST"]
[Termination "Chessalary won by checkmate"]

1. c4 {[%clk 0:03:00.9]} 1... e6 {[%clk 0:02:58.3]} 2. d4 {[%clk 0:02:59.8]}
2... d5 {[%clk 0:02:58]} 3. Nc3 {[%clk 0:02:59.2]} 3... c6 {[%clk 0:02:58.4]} 4.
cxd5 {[%clk 0:02:56.3]} 4... exd5 {[%clk 0:02:58.3]} 5. Qc2 {[%clk 0:02:55.7]}
5... Bd6 {[%clk 0:02:58.3]} 6. Nf3 {[%clk 0:02:54.7]} 6... Ne7 {[%clk
0:02:58.3]} 7. Bg5 {[%clk 0:02:53.4]} 7... Bf5 {[%clk 0:02:55.7]} 8. Qc1 {[%clk
0:02:27]} 8... O-O {[%clk 0:02:52.3]} 9. e3 {[%clk 0:02:26.7]} 9... Nd7 {[%clk
0:02:43.4]} 10. Be2 {[%clk 0:02:24.7]} 10... f6 {[%clk 0:02:40]} 11. Bh4 {[%clk
0:02:24.1]} 11... Ng6 {[%clk 0:02:40.6]} 12. Bg3 {[%clk 0:02:24.1]} 12... Qe7
{[%clk 0:02:37.7]} 13. O-O {[%clk 0:02:20.5]} 13... Bxg3 {[%clk 0:02:36.5]} 14.
hxg3 {[%clk 0:02:20.2]} 14... Rfe8 {[%clk 0:02:32.7]} 15. a3 {[%clk 0:02:16.4]}
15... Qd6 {[%clk 0:02:18.7]} 16. b4 {[%clk 0:02:10.6]} 16... Rac8 {[%clk
0:02:08.3]} 17. Na4 {[%clk 0:02:07.2]} 17... b6 {[%clk 0:02:03.6]} 18. Qc3
{[%clk 0:01:57.4]} 18... c5 {[%clk 0:01:58.1]} 19. bxc5 {[%clk 0:01:55.3]} 19...
bxc5 {[%clk 0:01:59]} 20. dxc5 {[%clk 0:01:50.4]} 20... Nxc5 {[%clk 0:01:59.9]}
21. Nxc5 {[%clk 0:01:47.3]} 21... Qxc5 {[%clk 0:01:58.4]} 22. Qxc5 {[%clk
0:01:35.3]} 22... Rxc5 {[%clk 0:01:59.3]} 23. Nd4 {[%clk 0:01:35.8]} 23... Bd7
{[%clk 0:01:48.1]} 24. Rfb1 {[%clk 0:01:32.6]} 24... Rec8 {[%clk 0:01:31]} 25.
Rb7 {[%clk 0:01:27.3]} 25... R8c7 {[%clk 0:01:31.2]} 26. Rab1 {[%clk 0:01:25.9]}
26... Rc1+ {[%clk 0:01:24.4]} 27. Kh2 {[%clk 0:01:20]} 27... Kf7 {[%clk
0:01:19.4]} 28. Bf3 {[%clk 0:01:07.1]} 28... Ne7 {[%clk 0:01:05.8]} 29. Rxc1
{[%clk 0:00:54.9]} 29... Rxb7 {[%clk 0:01:03.7]} 30. Rc5 {[%clk 0:00:55.2]}
30... Be6 {[%clk 0:00:58.4]} 31. Ra5 {[%clk 0:00:54.9]} 31... g5 {[%clk
0:00:53.2]} 32. Nb5 {[%clk 0:00:31.9]} 32... Nc8 {[%clk 0:00:52.8]} 33. Nd4
{[%clk 0:00:19.8]} 33... Ne7 {[%clk 0:00:50.7]} 34. Bh5+ {[%clk 0:00:19.5]}
34... Ng6 {[%clk 0:00:49.2]} 35. Nb5 {[%clk 0:00:16.3]} 35... Ke7 {[%clk
0:00:40.1]} 36. Rxa7 {[%clk 0:00:14.7]} 36... Rxa7 {[%clk 0:00:39.4]} 37. Nxa7
{[%clk 0:00:15.6]} 37... Bd7 {[%clk 0:00:40.3]} 38. Be2 {[%clk 0:00:14.9]} 38...
Kd6 {[%clk 0:00:36.9]} 39. Nb5+ {[%clk 0:00:14.8]} 39... Kc5 {[%clk 0:00:32.5]}
40. Nd4 {[%clk 0:00:14.2]} 40... Ne5 {[%clk 0:00:32.4]} 41. Kg1 {[%clk
0:00:09.3]} 41... Nc4 {[%clk 0:00:20.2]} 42. Bxc4 {[%clk 0:00:09.2]} 42... dxc4
{[%clk 0:00:20.2]} 43. Kf1 {[%clk 0:00:09.2]} 43... c3 {[%clk 0:00:19.8]} 44.
Ke2 {[%clk 0:00:09.3]} 44... Kc4 {[%clk 0:00:20.2]} 45. Kd1 {[%clk 0:00:09.8]}
45... Kd3 {[%clk 0:00:19.2]} 46. Kc1 {[%clk 0:00:07.1]} 46... c2 {[%clk
0:00:17.8]} 47. Nxc2 {[%clk 0:00:06.2]} 47... Ke2 {[%clk 0:00:18.1]} 48. f4
{[%clk 0:00:03]} 48... Kf2 {[%clk 0:00:16.7]} 49. fxg5 {[%clk 0:00:02.8]} 49...
fxg5 {[%clk 0:00:17.6]} 50. e4 {[%clk 0:00:02.8]} 50... Kxg3 {[%clk 0:00:17.5]}
51. Nd4 {[%clk 0:00:01.6]} 51... Kf4 {[%clk 0:00:16.9]} 52. Nf3 {[%clk 0:00:02]}
52... g4 {[%clk 0:00:16]} 53. Nd2 {[%clk 0:00:02.6]} 53... h5 {[%clk 0:00:14.2]}
54. Kd1 {[%clk 0:00:03]} 54... Kg3 {[%clk 0:00:12.7]} 55. e5 {[%clk 0:00:02.4]}
55... Kf4 {[%clk 0:00:11.4]} 56. e6 {[%clk 0:00:02.1]} 56... Bxe6 {[%clk
0:00:10.9]} 57. Ke2 {[%clk 0:00:03]} 57... h4 {[%clk 0:00:10.6]} 58. Kf2 {[%clk
0:00:03.4]} 58... Bd5 {[%clk 0:00:10.4]} 59. Nf1 {[%clk 0:00:02.9]} 59... h3
{[%clk 0:00:09.7]} 60. gxh3 {[%clk 0:00:02.7]} 60... gxh3 {[%clk 0:00:10.4]} 61.
Nh2 {[%clk 0:00:02.8]} 61... Bc6 {[%clk 0:00:08.6]} 62. Kg1 {[%clk 0:00:03.1]}
62... Bb5 {[%clk 0:00:07.5]} 63. Nf1 {[%clk 0:00:02.7]} 63... Kf3 {[%clk
0:00:05.1]} 64. Nh2+ {[%clk 0:00:02.7]} 64... Kg3 {[%clk 0:00:05]} 65. Nf1+
{[%clk 0:00:03]} 65... Bxf1 {[%clk 0:00:05.5]} 66. a4 {[%clk 0:00:02.2]} 66...
h2+ {[%clk 0:00:04.9]} 67. Kh1 {[%clk 0:00:02]} 67... Bg2# {[%clk 0:00:05.2]}
0-1